bitfinex-derivatives/quotes_SOLF0:USTF0_20260118
["timestamp","ask_amount","ask_price","bid_price","bid_amount"]
[1768709614781,16.10948337,142.68,142.61,1.76250537]
[1768709615081,3.27631381,142.7,142.63,1.76250537]
[1768709615278,5.66017897,142.69,142.63,1.76250537]
[1768709615488,3.27631381,142.7,142.63,1.76250537]
[1768709615678,3.27631381,142.7,142.63,8.07460537]
[1768709617584,6.956e-05,142.72,142.69,6.3093]
[1768709617780,3.27631381,142.77,142.65,119.2019]
[1768709617982,3.27631381,142.77,142.69,1.76250537]
[1768709618791,3.27631381,142.76,142.69,1.76250537]
[1768709620780,3.27631381,142.76,142.7,6.3088]
[1768709625990,3.27631381,142.76,142.69,1.76250537]
[1768709626697,5.03881918,142.76,142.69,1.76250537]
[1768709626894,3.27631381,142.75,142.69,1.76250537]
[1768709629392,3.27631381,142.75,142.68,8.06996162]
[1768709641106,9.5662591,142.77,142.7,1.76026162]
[1768709641611,3.2601591,142.77,142.7,1.76026162]
[1768709641805,11.32582072,142.79,142.71,6.3086]
[1768709642009,3.2601591,142.79,142.72,1.76026162]
[1768709642312,3.2601591,142.79,142.74,1.76026162]
[1768709642505,3.2601591,142.81,142.74,1.76026162]
[1768709642804,3.2601591,142.81,142.73,1.76026162]
[1768709643816,3.2601591,142.8,142.72,1.76026162]
[1768709644107,3.2601591,142.79,142.72,1.76026162]
[1768709644813,9.5654591,142.79,142.72,1.76026162]
[1768709645715,3.2601591,142.78,142.72,1.76026162]
[1768709646603,3.2601591,142.8,142.72,1.76026162]
[1768709646808,3.2601591,142.8,142.74,1.76026162]
[1768709647919,3.2601591,142.8,142.74,8.06746162]
[1768709648917,3.2601591,142.82,142.75,6.3068]
[1768709650225,3.2601591,142.82,142.76,1.76026162]
[1768709651225,3.2601591,142.87,142.78,1.76026162]
[1768709652938,3.2601591,142.86,142.78,8.06566162]
[1768709657138,3.2601591,142.86,142.78,6.3054]
[1768709657332,3.2601591,142.86,142.78,8.06566162]
[1768709660940,9.5624591,142.86,142.78,8.06566162]
[1768709661140,3.2601591,142.85,142.78,8.06566162]
[1768709661342,3.2601591,142.85,142.78,6.3054]
[1768709661840,3.2601591,142.84,142.77,1.76026162]
[1768709664639,3.2601591,142.84,142.76,6.3062]
[1768709664838,3.07163348,142.82,142.69,264.54]
[1768709665142,3.07163348,142.82,142.72,1.76026162]
[1768709665844,3.07163348,142.81,142.73,6.3075]
[1768709667538,3.07163348,142.8,142.73,6.3075]
[1768709668844,3.07163348,142.82,142.74,1.76026162]
[1768709669838,3.07163348,142.82,142.75,6.3067]
[1768709671443,3.07163348,142.82,142.74,1.76026162]
[1768709671647,3.07163348,142.82,142.76,8.06636162]
[1768709673750,3.07163348,142.82,142.74,8.06736162]
[1768709675843,3.11559184,142.81,142.74,8.06736162]
[1768709676039,1.76026162,142.81,142.74,6.3071]
[1768709676244,1.76026162,142.81,142.72,272.60816162]
[1768709676245,3.11559184,142.8,142.72,272.60816162]
[1768709676950,3.11559184,142.8,142.72,270.8479]
[1768709677247,3.11559184,142.8,142.72,272.60816162]
[1768709682252,4.87585346,142.79,142.72,270.8479]
[1768709682551,3.11559184,142.78,142.72,270.8479]
[1768709685455,1.76026162,142.79,142.63,98.1878]
[1768709685456,4.87585346,142.73,142.63,98.1878]
[1768709685654,3.11559184,142.72,142.62,1.76026162]
[1768709685855,3.11559184,142.7,142.62,1.76026162]
[1768709686744,3.11559184,142.7,142.62,8.07266162]
[1768709687454,3.11559184,142.7,142.62,6.3124]
[1768709688059,3.11559184,142.68,142.6,272.65356162]
[1768709691363,3.11559184,142.68,142.6,270.8933]
[1768709692657,11.20844238,142.71,142.61,8.07495216]
[1768709692864,11.20844238,142.71,142.63,1.76225216]
[1768709693661,3.13729022,142.7,142.61,6.3127]
[1768709693864,3.13729022,142.7,142.62,1.76225216]
[1768709694765,3.13729022,142.7,142.61,8.07495216]
[1768709695359,3.13729022,142.7,142.62,6.3124]
[1768709695556,3.13729022,142.7,142.61,1.76225216]
[1768709695557,3.13729022,142.72,142.63,1.76225216]
[1768709695959,3.13729022,142.72,142.64,6.3115]
[1768709696365,3.13729022,142.72,142.65,1.76225216]
[1768709701465,3.13729022,142.71,142.62,8.07465216]
[1768709701665,3.13729022,142.7,142.62,8.07465216]
[1768709702973,98.1189,142.74,142.68,1.76225216]
[1768709702974,3.13729022,142.74,142.68,1.76225216]
[1768709703271,3.13729022,142.74,142.64,98.1792]
[1768709703470,3.13729022,142.74,142.67,1.76225216]
[1768709708481,3.13729022,142.73,142.64,6.3115]
[1768709708773,1.76225216,142.72,142.64,1.76225216]
[1768709708981,3.13729022,142.71,142.64,1.76225216]
[1768709709174,3.13729022,142.71,142.62,1.76225216]
[1768709709868,3.13729022,142.7,142.62,8.07455216]
[1768709710978,3.13729022,142.7,142.63,6.3121]
[1768709720777,3.13729022,142.68,142.61,6.3128]
[1768709720984,4.89954238,142.68,142.59,264.74]
[1768709721281,3.13729022,142.67,142.59,264.74]
[1768709721483,3.13729022,142.65,142.57,8.07675216]
[1768709722879,9.44879022,142.65,142.57,8.07675216]
[1768709726183,6.3115,142.65,142.57,8.07675216]
[1768709726386,3.10908424,142.64,142.57,8.07675216]
[1768709728784,9.42058424,142.65,142.57,8.07675216]
[1768709730888,9.42058424,142.65,142.57,6.3145]
[1768709731189,9.42058424,142.65,142.57,8.07675216]
[1768709731989,3.10908424,142.64,142.57,8.07675216]
[1768709738194,3.10908424,142.64,142.57,6.3145]
[1768709753297,3.10284716,142.63,142.57,6.3145]
[1768709758598,3.10284716,142.64,142.57,6.3145]
[1768709760705,3.10284716,142.62,142.55,6.3157]
[1768709768511,5.49533266,142.61,142.55,6.3157]
[1768709768707,1.76329565,142.61,142.53,6.3165]
[1768709768913,3.10284716,142.6,142.53,6.3165]
[1768709771713,3.10284716,142.6,142.54,6.316]
[1768709772209,3.10284716,142.6,142.53,6.3164]
[1768709773306,3.10284716,142.59,142.53,6.3164]
[1768709778316,3.10284716,142.58,142.51,6.3171]
[1768709782220,3.10284716,142.58,142.51,8.08039565]
[1768709783322,3.10284716,142.58,142.51,6.3171]
[1768709783918,3.10711591,142.57,142.51,6.3171]
[1768709784323,3.10711591,142.57,142.5,266.68329565]
[1768709784916,3.10711591,142.57,142.5,273.00119565]
[1768709786120,3.10711591,142.57,142.5,266.68329565]
[1768709786326,3.10711591,142.59,142.52,1.76329565]
[1768709787825,3.10711591,142.59,142.52,8.08009565]
[1768709795431,3.10711591,142.59,142.53,6.3165]
[1768709796630,6.3138,142.6,142.54,1.76329565]
[1768709796825,3.06045326,142.61,142.56,1.76329565]
[1768709809633,3.06045326,142.61,142.55,8.07889565]
[1768709811430,5.31e-05,142.64,142.58,98.2217]
[1768709811628,3.06045326,142.68,142.63,1.76329565]
[1768709812633,3.06045326,142.68,142.63,8.07539565]
[1768709813437,3.06045326,142.68,142.63,6.3121]
[1768709813832,3.17995687,142.7,142.65,6.3111]
[1768709814032,3.17995687,142.7,142.63,1.76165335]
[1768709814838,3.17995687,142.7,142.63,8.07365335]
[1768709816431,3.17995687,142.69,142.63,6.312]
[1768709820643,3.17995687,142.71,142.65,1.76165335]
[1768709820844,3.17995687,142.73,142.67,1.76165335]
[1768709821841,3.17995687,142.73,142.67,8.07175335]
[1768709824244,3.17995687,142.73,142.67,6.3101]
[1768709826041,3.17995687,142.73,142.65,8.07275335]
[1768709830344,3.17995687,142.73,142.65,6.3111]
[1768709830646,3.17995687,142.73,142.65,8.07275335]
[1768709831751,3.17995687,142.73,142.67,1.76165335]
[1768709832150,3.17995687,142.75,142.69,1.76165335]
[1768709841558,3.17995687,142.75,142.69,8.07105335]
[1768709845563,1.76165335,142.79,142.67,264.74]
[1768709845564,3.12364116,142.78,142.71,1.76165335]
[1768709845953,3.12364116,142.78,142.73,1.76165335]
[1768709848557,9.42824116,142.81,142.73,1.76165335]
[1768709848753,3.12364116,142.8,142.73,1.76165335]
[1768709849363,9.42844116,142.8,142.73,1.76165335]
[1768709849667,3.12364116,142.79,142.73,1.76165335]
[1768709855063,3.00985869,142.78,142.72,1.76165335]
[1768709855464,3.00985869,142.78,142.7,6.3088]
[1768709855658,3.00985869,142.78,142.72,1.76165335]
[1768709856474,3.00985869,142.78,142.7,8.07045335]
[1768709860982,3.00985869,142.78,142.71,6.3085]
[1768709864187,3.00985869,142.76,142.68,1.76165335]
[1768709864386,3.00985869,142.76,142.7,1.76165335]
[1768709864590,3.00985869,142.78,142.72,1.76165335]
[1768709865885,3.00985869,142.78,142.72,8.06975335]
[1768709869185,3.00985869,142.78,142.7,6.3088]
[1768709869385,3.00985869,142.78,142.7,8.07045335]
[1768709869893,3.00985869,142.78,142.71,6.3086]
[1768709870085,3.00985869,142.78,142.72,1.76165335]
[1768709870287,6.3045,142.81,142.72,1.76165335]
[1768709870489,8.3575916,142.8,142.72,1.76165335]
[1768709870687,8.3575916,142.8,142.73,6.3077]
[1768709870688,3.00985869,142.8,142.73,6.3077]
[1768709875292,3.00985869,142.8,142.73,8.06651518]
[1768709876799,3.1112645,142.79,142.73,1.75881518]
[1768709876999,3.1112645,142.79,142.72,1.75881518]
[1768709878899,3.1112645,142.79,142.72,8.06691518]
[1768709881103,3.1112645,142.78,142.7,6.3087]
[1768709881398,3.1112645,142.78,142.71,1.75881518]
[1768709882891,3.1112645,142.77,142.71,1.75881518]
[1768709883097,3.1112645,142.77,142.7,8.06751518]
[1768709885198,9.4174645,142.77,142.7,1.75881518]
[1768709885395,5.36408034,142.76,142.7,1.75881518]
[1768709885599,9.4174645,142.77,142.7,1.75881518]
[1768709885803,5.36408034,142.76,142.7,1.75881518]
[1768709885997,9.4174645,142.77,142.7,1.75881518]
[1768709886197,5.36408597,142.76,142.7,1.75881518]
[1768709886402,9.4174645,142.77,142.7,1.75881518]
[1768709886596,5.36519079,142.76,142.7,1.75881518]
[1768709886797,9.4174645,142.77,142.7,1.75881518]
[1768709887002,8.47645529,142.76,142.7,1.75881518]
[1768709887201,3.1112645,142.76,142.7,1.75881518]
[1768709894798,6.3062,142.77,142.7,1.75881518]
[1768709895403,9.4174645,142.77,142.7,1.75881518]
[1768709899113,3.1112645,142.76,142.7,1.75881518]
[1768709910426,3.1112645,142.76,142.69,8.06831518]
[1768709910617,3.01822589,142.74,142.67,8.06891518]
[1768709910921,3.01822589,142.74,142.67,1.75881518]
[1768709911120,6.3065,142.76,142.65,383.8727]
[1768709911121,3.01822589,142.76,142.69,1.75881518]
[1768709913027,3.01822589,142.76,142.69,8.06821518]
[1768709917322,3.01822589,142.76,142.69,6.3094]
[1768709917528,3.01822589,142.76,142.67,8.06901518]
[1768709918832,3.15795907,142.75,142.67,8.06901518]
[1768709919025,3.15795907,142.75,142.66,266.41881518]
[1768709919227,3.15795907,142.74,142.66,266.41881518]
[1768709919525,3.15795907,142.74,142.66,264.66]
[1768709920030,3.15795907,142.74,142.67,6.3103]
[1768709920426,3.15795907,142.73,142.66,6.3107]
[1768709925130,3.15795907,142.73,142.66,8.06951518]
[1768709926229,3.15795907,142.73,142.66,6.3107]
[1768709926436,3.15795907,142.73,142.66,8.06951518]
[1768709928740,3.15795907,142.73,142.66,6.3107]
[1768709938047,3.09773587,142.72,142.65,1.76065931]
[1768709940746,3.09773587,142.71,142.6,21.04]
[1768709940949,3.09773587,142.69,142.59,461.1275]
[1768709941138,3.09773587,142.69,142.61,1.76065931]
[1768709954768,4.85839518,142.71,142.61,1.76065931]
[1768709955068,3.09773587,142.7,142.61,1.76065931]
[1768709955765,3.09773587,142.7,142.63,1.76065931]
[1768709956670,3.09773587,142.7,142.62,1.76065931]
[1768709969683,3.09773587,142.7,142.64,1.76065931]
[1768709970284,3.05386223,142.72,142.64,1.76065931]
[1768709978790,3.05386223,142.72,142.66,6.3108]
[1768709980587,3.31056194,142.71,142.66,6.3108]
[1768709983389,3.31056194,142.71,142.64,6.3114]
[1768709984593,3.31056194,142.71,142.65,6.3112]
[1768709994701,1.76065931,142.7,142.65,6.3112]
[1768709995198,4.78163366,142.7,142.65,6.3112]
[1768709995901,3.02097435,142.69,142.65,6.3112]
[1768710026928,3.24825755,142.72,142.63,1.76156123]
[1768710027130,3.24825755,142.72,142.59,298.3677]
[1768710027131,5.40292849,142.71,142.66,6.3108]
[1768710027319,3.24825755,142.72,142.66,6.3108]
[1768710031531,8.64767387,142.71,142.66,6.3108]
[1768710031721,3.24825755,142.71,142.66,6.3108]
[1768710061949,1.76122516,142.72,142.66,6.3108]
[1768710062148,5.39185383,142.71,142.66,6.3108]
[1768710062351,1.76122516,142.72,142.66,6.3108]
[1768710062653,5.39188801,142.71,142.66,6.3108]
[1768710062843,4.77164357,142.72,142.66,6.3108]
[1768710063042,5.39195239,142.71,142.66,6.3108]
[1768710063242,4.77164357,142.72,142.66,6.3108]
[1768710063455,5.39197219,142.71,142.66,6.3108]
[1768710063650,4.77164357,142.72,142.66,6.3108]
[1768710063950,5.39193107,142.71,142.66,6.3108]
[1768710064156,4.77164357,142.72,142.66,6.3108]
[1768710064455,5.39194955,142.71,142.66,6.3108]
[1768710064758,4.77164357,142.72,142.66,6.3108]
[1768710064958,5.39193852,142.71,142.66,6.3108]
[1768710065152,4.77164357,142.72,142.66,6.3108]
[1768710065451,5.39195682,142.71,142.66,6.3108]
[1768710065648,4.77164357,142.72,142.66,6.3108]
[1768710065852,5.38782331,142.71,142.66,6.3108]
[1768710066057,4.77164357,142.72,142.66,6.3108]
[1768710066253,5.38782331,142.71,142.66,6.3108]
[1768710066453,4.77164357,142.72,142.66,6.3108]
[1768710066655,5.38783112,142.71,142.66,6.3108]
[1768710066855,4.77164357,142.72,142.66,6.3108]
[1768710067056,5.38783112,142.71,142.66,6.3108]
[1768710067256,4.77164357,142.72,142.66,6.3108]
[1768710067456,5.38777479,142.71,142.66,6.3108]
[1768710067658,4.77164357,142.72,142.66,6.3108]
[1768710067855,5.38777479,142.71,142.66,6.3108]
[1768710068045,4.77164357,142.72,142.66,6.3108]
[1768710068245,5.38777479,142.71,142.66,6.3108]
[1768710068453,4.77164357,142.72,142.66,6.3108]
[1768710068655,5.38778296,142.71,142.66,6.3108]
[1768710068850,4.77164357,142.72,142.66,6.3108]
[1768710069057,5.38778296,142.71,142.66,6.3108]
[1768710069354,4.77164357,142.72,142.66,6.3108]
[1768710069555,5.38779133,142.71,142.66,6.3108]
[1768710069761,4.77164357,142.72,142.66,6.3108]
[1768710069960,5.38779118,142.71,142.66,6.3108]
[1768710070254,4.77164357,142.72,142.66,6.3108]
[1768710070460,5.38779974,142.71,142.66,6.3108]
[1768710070752,4.77164357,142.72,142.66,6.3108]
[1768710070953,5.38779974,142.71,142.66,6.3108]
[1768710071156,4.77164357,142.72,142.66,6.3108]
[1768710071455,5.38781678,142.71,142.66,6.3108]
[1768710071657,4.77164357,142.72,142.66,6.3108]
[1768710071854,5.38781274,142.71,142.66,6.3108]
[1768710072054,4.77164357,142.72,142.66,6.3108]
[1768710072255,5.38781274,142.71,142.66,6.3108]
[1768710072456,4.77164357,142.72,142.66,6.3108]
[1768710072657,5.38798995,142.71,142.66,6.3108]
[1768710072862,4.77164357,142.72,142.66,6.3108]
[1768710073058,5.38798761,142.71,142.66,6.3108]
[1768710073358,4.77164357,142.72,142.66,6.3108]
[1768710073557,5.38819317,142.71,142.66,6.3108]
[1768710073758,4.77164357,142.72,142.66,6.3108]
[1768710073959,5.38819317,142.71,142.66,6.3108]
[1768710074159,4.77164357,142.72,142.66,6.3108]
[1768710074359,5.38820672,142.71,142.66,6.3108]
[1768710074558,4.77164357,142.72,142.66,6.3108]
[1768710074756,5.38842283,142.71,142.66,6.3108]
[1768710075055,4.77164357,142.72,142.66,6.3108]
[1768710075256,5.38842283,142.71,142.66,6.3108]
[1768710075450,4.77164357,142.72,142.66,6.3108]
[1768710075653,5.3887376,142.71,142.66,6.3108]
[1768710075848,4.77164357,142.72,142.66,6.3108]
[1768710076052,5.3887376,142.71,142.66,6.3108]
[1768710076252,4.77164357,142.72,142.66,6.3108]
[1768710076552,5.38934316,142.71,142.66,6.3108]
[1768710076852,4.77164357,142.72,142.66,6.3108]
[1768710077053,5.38934316,142.71,142.66,6.3108]
[1768710077361,4.77164357,142.72,142.66,6.3108]
[1768710077562,5.38934329,142.71,142.66,6.3108]
[1768710077756,4.77164357,142.72,142.66,6.3108]
[1768710077959,5.38934329,142.71,142.66,6.3108]
[1768710078156,4.77164357,142.72,142.66,6.3108]
[1768710078356,5.38959958,142.71,142.66,6.3108]
[1768710078556,4.77164357,142.72,142.66,6.3108]
[1768710078757,5.38934344,142.71,142.66,6.3108]
[1768710078961,4.77164357,142.72,142.66,6.3108]
[1768710079152,5.38934344,142.71,142.66,6.3108]
[1768710079357,4.77164357,142.72,142.66,6.3108]
[1768710079657,5.38934358,142.71,142.66,6.3108]
[1768710079858,4.77164357,142.72,142.66,6.3108]
[1768710080059,5.38934358,142.71,142.66,6.3108]
[1768710080259,4.77164357,142.72,142.66,6.3108]
[1768710080464,5.38935327,142.71,142.66,6.3108]
[1768710080764,4.77164357,142.72,142.66,6.3108]
[1768710080958,5.38935327,142.71,142.66,6.3108]
[1768710081160,4.77164357,142.72,142.66,6.3108]
[1768710081362,5.38934999,142.71,142.66,6.3108]
[1768710081558,4.77164357,142.72,142.66,6.3108]
[1768710081758,5.3893486,142.71,142.66,6.3108]
[1768710081964,4.77164357,142.72,142.66,6.3108]
[1768710082261,5.3893486,142.71,142.66,6.3108]
[1768710082462,4.77164357,142.72,142.66,6.3108]
[1768710082651,5.38934444,142.71,142.66,6.3108]
[1768710082855,4.77164357,142.72,142.66,6.3108]
[1768710083058,5.38934444,142.71,142.66,6.3108]
[1768710083355,4.77164357,142.72,142.66,6.3108]
[1768710083560,5.38934066,142.71,142.66,6.3108]
[1768710083762,4.77164357,142.72,142.66,6.3108]
[1768710083963,5.38934066,142.71,142.66,6.3108]
[1768710084163,4.77164357,142.72,142.66,6.3108]
[1768710084363,5.3893386,142.71,142.66,6.3108]
[1768710084562,4.77164357,142.72,142.66,6.3108]
[1768710084762,5.3893373,142.71,142.66,6.3108]
[1768710084961,4.77164357,142.72,142.66,6.3108]
[1768710085166,5.3893373,142.71,142.66,6.3108]
[1768710085367,4.77164357,142.72,142.66,6.3108]
[1768710085668,5.38933647,142.71,142.66,6.3108]
[1768710085864,4.77164357,142.72,142.66,6.3108]
[1768710086065,5.38933647,142.71,142.66,6.3108]
[1768710086264,4.77164357,142.72,142.66,6.3108]
[1768710086465,5.38933353,142.71,142.66,6.3108]
[1768710086765,4.77164357,142.72,142.66,6.3108]
[1768710086964,5.38933353,142.71,142.66,6.3108]
[1768710087265,4.77164357,142.72,142.66,6.3108]
[1768710087471,5.38933092,142.71,142.66,6.3108]
[1768710087765,4.77164357,142.72,142.66,6.3108]
[1768710087955,5.38933092,142.71,142.66,6.3108]
[1768710088159,4.77164357,142.72,142.66,6.3108]
[1768710088359,5.38932982,142.71,142.66,6.3108]
[1768710088560,4.77164357,142.72,142.66,6.3108]
[1768710088760,5.38928149,142.71,142.66,6.3108]
[1768710088967,4.77164357,142.72,142.66,6.3108]
[1768710089168,5.3891585,142.71,142.66,6.3108]
[1768710089469,4.77164357,142.72,142.66,6.3108]
[1768710089668,5.38913654,142.71,142.66,6.3108]
[1768710089969,4.77164357,142.72,142.66,6.3108]
[1768710090169,5.38913653,142.71,142.66,6.3108]
[1768710090370,4.77164357,142.72,142.66,6.3108]
[1768710090667,5.38913732,142.71,142.66,6.3108]
[1768710090868,4.77164357,142.72,142.66,6.3108]
[1768710091069,5.38913732,142.71,142.66,6.3108]
[1768710091264,4.77164357,142.72,142.66,6.3108]
[1768710091467,5.38913798,142.71,142.66,6.3108]
[1768710091767,4.77164357,142.72,142.66,6.3108]
[1768710091967,5.38913798,142.71,142.66,6.3108]
[1768710092164,4.77164357,142.72,142.66,6.3108]
[1768710092366,5.38913919,142.71,142.66,6.3108]
[1768710092565,4.77164357,142.72,142.66,6.3108]
[1768710092765,5.38913871,142.71,142.66,6.3108]
[1768710092965,4.77164357,142.72,142.66,6.3108]
[1768710093161,5.38913871,142.71,142.66,6.3108]
[1768710093367,3.01486794,142.71,142.66,6.3108]
[1768710101180,3.07997501,142.75,142.65,1.76122516]
[1768710101380,5.37641698,142.74,142.67,1.76122516]
[1768710101579,4.84120017,142.77,142.69,1.76122516]
[1768710101785,5.37686937,142.76,142.69,1.76122516]
[1768710101984,5.37686937,142.75,142.71,6.3085]
[1768710102179,4.84120017,142.77,142.71,6.3085]
[1768710102387,5.3719482,142.76,142.71,6.3085]
[1768710102575,4.84120017,142.77,142.71,6.3085]
[1768710102883,5.37187458,142.76,142.71,6.3085]
[1768710103089,4.84120017,142.77,142.71,6.3085]
[1768710103280,5.3718561,142.76,142.71,6.3085]
[1768710103482,4.84120017,142.77,142.71,6.3085]
[1768710103682,5.36934634,142.76,142.71,6.3085]
[1768710103883,4.84120017,142.77,142.71,6.3085]
[1768710104078,5.36934634,142.76,142.71,6.3085]
[1768710104282,4.84120017,142.77,142.71,6.3085]
[1768710104485,5.36746783,142.76,142.71,6.3085]
[1768710104685,4.84120017,142.77,142.71,6.3085]
[1768710104988,5.36746783,142.76,142.71,6.3085]
[1768710105291,4.84120017,142.77,142.71,6.3085]
[1768710105485,5.36607591,142.76,142.71,6.3085]
[1768710105680,4.84120017,142.77,142.71,6.3085]
[1768710105889,5.36607591,142.76,142.71,6.3085]
[1768710106092,4.84120017,142.77,142.71,6.3085]
[1768710106893,3.07997501,142.76,142.71,6.3085]
[1768710120505,15.86429592,142.8,142.72,8.06762032]
[1768710120711,5.3580867,142.79,142.72,1.75972032]
[1768710120910,3.01227896,142.8,142.74,1.75972032]
[1768710121710,4.77199928,142.82,142.74,8.06692032]
[1768710121914,5.3569719,142.81,142.74,8.06692032]
[1768710122111,4.77199928,142.82,142.74,8.06692032]
[1768710122307,5.35544793,142.81,142.74,8.06692032]
[1768710122511,9.31617896,142.82,142.74,8.06692032]
[1768710122700,3.01227896,142.82,142.75,6.3068]
[1768710124014,9.31537896,142.84,142.76,8.06582032]
[1768710124408,3.01227896,142.84,142.78,1.75972032]
[1768710127517,3.01227896,142.84,142.77,6.3058]
[1768710135621,1.75972032,142.85,142.77,6.3058]
[1768710135922,4.77199928,142.85,142.77,6.3058]
[1768710142215,3.31204225,142.84,142.77,6.3058]
[1768710147029,3.31204225,142.84,142.78,6.3055]
[1768710154829,3.08063771,142.82,142.71,98.1319]
[1768710155036,3.08063771,142.8,142.72,1.75972032]
[1768710155930,3.08063771,142.8,142.73,6.3076]
[1768710157034,3.08063771,142.78,142.71,1.75972032]
[1768710157836,3.08063771,142.78,142.72,6.3081]
[1768710174360,3.09132596,142.8,142.73,6.3075]
[1768710174559,3.09132596,142.8,142.73,8.06722032]
[1768710179362,3.09132596,142.8,142.73,6.3075]
[1768710198177,5.37383186,142.79,142.73,6.3075]
[1768710198376,3.09132596,142.8,142.73,6.3075]
[1768710198575,5.37392073,142.79,142.73,6.3075]
[1768710198874,3.09132596,142.8,142.71,8.06744991]
[1768710199070,8.46523089,142.79,142.71,8.06744991]
[1768710199270,3.09132596,142.79,142.71,8.06744991]
[1768710199778,3.09132596,142.79,142.72,6.3081]
[1768710201378,8.47257635,142.78,142.72,6.3081]
[1768710201572,3.09132596,142.78,142.71,1.75904991]
[1768710202781,3.09132596,142.78,142.71,8.06764991]
[1768710208388,3.16113789,142.76,142.69,8.06834991]
[1768710210185,3.16113789,142.76,142.67,6.3101]
[1768710210386,3.16113789,142.76,142.68,1.75904991]
[1768710211592,8.06534991,142.77,142.66,266.35904991]
[1768710211593,3.16113789,142.74,142.66,266.35904991]
[1768710211986,3.16113789,142.76,142.68,1.75904991]
[1768710213491,9.46763789,142.76,142.68,1.75904991]
[1768710213682,3.16113789,142.75,142.68,1.75904991]
[1768710230603,3.13527112,142.74,142.67,6.3103]
[1768710230794,3.13527112,142.72,142.65,272.69004991]
[1768710231602,3.13527112,142.72,142.65,270.931]
[1768710235805,3.13527112,142.72,142.66,6.3108]
[1768710238110,5.00800479,142.74,142.66,8.06984991]
[1768710239409,3.24895488,142.74,142.66,8.0713359]
[1768710240210,3.24895488,142.74,142.67,6.3103]
[1768710253015,3.24895488,142.74,142.67,8.0708359]
[1768710255224,5.39210521,142.73,142.67,8.0708359]
[1768710255426,3.24895488,142.74,142.67,8.0708359]
[1768710255631,5.39210521,142.73,142.67,8.0708359]
[1768710255831,3.24895488,142.74,142.67,8.0708359]
[1768710256026,5.39210521,142.73,142.67,8.0708359]
[1768710256228,3.24895488,142.74,142.67,8.0708359]
[1768710256431,5.39240879,142.73,142.67,8.0708359]
[1768710256629,3.24895488,142.74,142.67,8.0708359]
[1768710256828,5.39240879,142.73,142.67,8.0708359]
[1768710257032,3.24895488,142.74,142.67,8.0708359]
[1768710257331,5.39240879,142.73,142.67,8.0708359]
[1768710257533,3.24895488,142.74,142.67,8.0708359]
[1768710257831,5.39247482,142.73,142.67,8.0708359]
[1768710258031,3.24895488,142.74,142.67,8.0708359]
[1768710258335,5.39250648,142.73,142.67,8.0708359]
[1768710258533,3.24895488,142.74,142.67,8.0708359]
[1768710258832,5.39271043,142.73,142.67,8.0708359]
[1768710259132,3.24895488,142.74,142.67,8.0708359]
[1768710259327,5.39275019,142.73,142.67,8.0708359]
[1768710259527,3.24895488,142.74,142.67,8.0708359]
[1768710259730,5.39283646,142.73,142.67,8.0708359]
[1768710259930,3.24895488,142.74,142.67,8.0708359]
[1768710260132,5.39283646,142.73,142.67,8.0708359]
[1768710260331,3.24895488,142.74,142.67,8.0708359]
[1768710260531,5.39299172,142.73,142.67,8.0708359]
[1768710260829,3.24895488,142.74,142.67,8.0708359]
[1768710261029,5.39299169,142.73,142.67,8.0708359]
[1768710261237,3.24895488,142.74,142.67,8.0708359]
[1768710261436,5.39317453,142.73,142.67,8.0708359]
[1768710261636,3.24895488,142.74,142.67,8.0708359]
[1768710261937,5.39317453,142.73,142.67,8.0708359]
[1768710262133,3.24895488,142.74,142.67,8.0708359]
[1768710262330,5.39338899,142.73,142.67,8.0708359]
[1768710262639,3.24895488,142.74,142.67,8.0708359]
[1768710262837,5.39338899,142.73,142.67,8.0708359]
[1768710263039,3.24895488,142.74,142.67,8.0708359]
[1768710263234,5.39345522,142.73,142.68,6.3099]
[1768710263435,3.24895488,142.74,142.68,6.3099]
[1768710263635,5.39401903,142.73,142.68,6.3099]
[1768710263834,3.24895488,142.74,142.68,6.3099]
[1768710264036,5.39401903,142.73,142.68,6.3099]
[1768710264338,3.24895488,142.74,142.68,6.3099]
[1768710264539,5.3941755,142.73,142.68,6.3099]
[1768710264740,3.24895488,142.74,142.68,6.3099]
[1768710264934,5.3941755,142.73,142.67,1.7605359]
[1768710265141,3.32835482,142.76,142.69,1.7605359]
[1768710265331,3.32835482,142.76,142.7,264.72]
[1768710266839,3.32835482,142.76,142.72,6.3081]
[1768710292559,3.32835482,142.76,142.73,6.3077]
[1768710292764,3.29313488,142.79,142.73,6.3077]
[1768710300969,3.29313488,142.78,142.7,264.72]
[1768710301170,3.29313488,142.76,142.69,1.7605359]
[1768710301364,3.29313488,142.76,142.68,1.76014381]
[1768710302871,3.29313488,142.76,142.69,6.3093]
[1768710307071,8.68106384,142.75,142.69,6.3093]